bitfinex/quotes_BTCUSD_20241018
["timestamp","ask_amount","ask_price","bid_price","bid_amount"]
[1729244160797,0.294646,67878.0,67872.0,0.00294628]
[1729244161234,0.147333,67873.0,67872.0,0.00294628]
[1729244161444,0.147333,67873.0,67872.0,0.00221031]
[1729244161684,0.147327,67877.0,67873.0,0.147333]
[1729244161903,0.147329,67875.0,67874.0,0.04874895]
[1729244162111,0.294646,67878.0,67874.0,0.04874895]
[1729244162320,0.147329,67875.0,67874.0,0.00294626]
[1729244162742,0.147323,67878.0,67874.0,0.04874755]
[1729244162955,0.294646,67878.0,67875.0,0.04580129]
[1729244163165,0.147327,67876.0,67875.0,0.04580129]
[1729244163380,0.147327,67876.0,67875.0,0.19476044]
[1729244164214,0.147326,67877.0,67875.0,0.19476044]
[1729244164464,0.148978,67880.0,67876.0,0.39198615]
[1729244164684,0.001658,67880.0,67879.0,0.14895915]
[1729244164903,0.148976,67880.0,67879.0,0.14895915]
[1729244165110,0.001658,67880.0,67879.0,0.14895915]
[1729244165553,0.148976,67880.0,67879.0,0.14895915]
[1729244166188,0.148976,67880.0,67879.0,0.15595915]
[1729244167173,0.148976,67880.0,67879.0,0.15571424]
[1729244167326,0.148976,67880.0,67879.0,0.19457097]
[1729244167731,0.148976,67880.0,67879.0,0.20457097]
[1729244168368,0.148976,67880.0,67879.0,0.21457097]
[1729244168571,0.148976,67880.0,67879.0,0.21353471]
[1729244174835,0.148976,67880.0,67879.0,0.26247371]
[1729244175043,0.148976,67880.0,67879.0,0.25247371]
[1729244175251,0.148976,67880.0,67879.0,0.26241614]
[1729244175524,0.148976,67880.0,67879.0,0.27041614]
[1729244175703,0.148976,67880.0,67879.0,0.26041614]
[1729244176372,0.148976,67880.0,67879.0,0.26941614]
[1729244176814,0.148976,67880.0,67879.0,0.26041614]
[1729244177424,0.148976,67880.0,67879.0,0.31835555]
[1729244177839,0.148976,67880.0,67879.0,0.32835555]
[1729244178244,0.148976,67880.0,67879.0,0.33835555]
[1729244178490,0.148976,67880.0,67879.0,0.36033535]
[1729244178676,0.001658,67880.0,67879.0,0.47525637]
[1729244178881,0.001658,67880.0,67879.0,0.53465716]
[1729244179033,0.001658,67880.0,67879.0,0.70925716]
[1729244179260,0.001658,67880.0,67879.0,0.65821631]
[1729244179796,0.001658,67880.0,67879.0,0.53129529]
[1729244180025,0.001658,67880.0,67879.0,0.54529529]
[1729244180232,0.001658,67880.0,67879.0,0.32077529]
[1729244180441,0.001658,67880.0,67879.0,0.22537529]
[1729244180672,0.148976,67880.0,67879.0,0.21537529]
[1729244180893,0.148976,67880.0,67879.0,0.22937529]
[1729244181306,0.001658,67880.0,67879.0,0.20137529]
[1729244181513,0.001658,67880.0,67879.0,0.21537529]
[1729244181741,0.001658,67880.0,67879.0,0.22937529]
[1729244182228,0.001658,67880.0,67879.0,0.21537529]
[1729244182436,0.001658,67880.0,67879.0,0.37669529]
[1729244185866,0.001658,67880.0,67879.0,0.37869529]
[1729244186081,0.001658,67880.0,67879.0,0.37952329]
[1729244187432,0.001658,67880.0,67879.0,0.37752329]
[1729244188750,0.001658,67880.0,67879.0,0.23020329]
[1729244188961,0.26389702,67880.0,67879.0,0.23020329]
[1729244189170,0.26389702,67880.0,67879.0,0.36241089]
[1729244189392,0.26389702,67880.0,67879.0,0.23020329]
[1729244189393,0.148976,67880.0,67879.0,0.23020329]
[1729244190762,0.148976,67880.0,67879.0,0.36242211]
[1729244190966,0.148976,67880.0,67879.0,0.23020329]
[1729244191439,0.26389702,67880.0,67879.0,0.23020329]
[1729244191647,0.26389702,67880.0,67879.0,0.17778715]
[1729244192314,0.26389702,67880.0,67879.0,0.16378715]
[1729244192743,0.26389702,67880.0,67879.0,0.17778715]
[1729244194675,0.26389702,67880.0,67879.0,0.16378715]
[1729244194932,0.26389702,67880.0,67879.0,0.17778715]
[1729244199023,0.148976,67880.0,67879.0,0.17778715]
[1729244201359,0.148976,67880.0,67879.0,0.31010226]
[1729244201738,0.149016,67880.0,67879.0,0.31010226]
[1729244202341,0.149016,67880.0,67879.0,0.17778715]
[1729244216543,0.149016,67880.0,67879.0,0.17778715]
[1729244222026,0.001698,67880.0,67879.0,0.17778715]
[1729244222249,0.001698,67880.0,67879.0,0.42145334]
[1729244222456,0.001698,67880.0,67879.0,0.42050715]
[1729244223317,0.001698,67880.0,67879.0,0.40650715]
[1729244223522,0.001698,67880.0,67879.0,0.39250715]
[1729244223721,0.001698,67880.0,67879.0,0.40650715]
[1729244224352,0.001698,67880.0,67879.0,0.25718715]
[1729244224968,0.001698,67880.0,67879.0,0.27118715]
[1729244227999,0.001698,67880.0,67879.0,0.27318715]
[1729244228867,0.001698,67880.0,67879.0,0.27118715]
[1729244229505,0.001698,67880.0,67879.0,0.27318715]
[1729244230597,0.001698,67880.0,67879.0,0.42050715]
[1729244231695,0.001698,67880.0,67879.0,0.27318715]
[1729244233376,0.001698,67880.0,67879.0,0.42050715]
[1729244233611,0.001698,67880.0,67879.0,0.27318715]
[1729244234096,0.001698,67880.0,67879.0,0.27118715]
[1729244234327,0.149016,67880.0,67879.0,0.17778715]
[1729244235479,0.149016,67880.0,67879.0,0.22375938]
[1729244240422,0.149016,67880.0,67879.0,0.41927988]
[1729244240423,0.26393702,67880.0,67879.0,0.41927988]
[1729244240665,0.26393702,67880.0,67879.0,0.22375938]
[1729244241905,0.149016,67880.0,67879.0,0.22375938]
[1729244248247,0.001698,67880.0,67879.0,0.22670559]
[1729244248501,0.001698,67880.0,67879.0,0.22670545]
[1729244248749,0.001698,67880.0,67879.0,0.22375938]
[1729244248750,0.149016,67880.0,67879.0,0.22375938]
[1729244255327,0.149016,67880.0,67879.0,0.41931223]
[1729244259240,0.26393702,67880.0,67879.0,0.41931223]
[1729244263072,0.26393702,67880.0,67879.0,0.41940691]
[1729244263518,0.27546059,67880.0,67879.0,0.41940691]
[1729244263752,0.27546059,67880.0,67879.0,0.22375938]
[1729244264048,0.27546059,67880.0,67879.0,0.35627737]
[1729244264049,0.55655758,67880.0,67879.0,0.35627737]
[1729244264281,0.55655758,67880.0,67879.0,0.22375938]
[1729244264936,0.55655758,67880.0,67879.0,0.19575938]
[1729244265161,0.55655758,67880.0,67879.0,0.20575938]
[1729244265390,0.55655758,67880.0,67879.0,0.21575938]
[1729244266885,0.6714786,67880.0,67879.0,0.21575938]
[1729244267113,0.67791756,67880.0,67879.0,0.17719244]
[1729244267371,0.67791756,67880.0,67879.0,0.10914383]
[1729244267617,0.67791756,67880.0,67879.0,0.020828]
[1729244267878,0.67791756,67880.0,67879.0,0.06497609]
[1729244268366,0.67791756,67880.0,67879.0,0.06497638]
[1729244269774,0.67791756,67880.0,67879.0,0.020828]
[1729244270005,0.67791756,67880.0,67879.0,0.06497638]
[1729244270224,0.67791756,67880.0,67879.0,0.06495853]
[1729244270662,0.67791756,67880.0,67879.0,0.020828]
[1729244271948,0.50131756,67880.0,67879.0,0.020828]
[1729244272178,0.38639654,67880.0,67879.0,0.020828]
[1729244273832,0.26053957,67880.0,67879.0,0.16978715]
[1729244274071,0.26053957,67880.0,67879.0,0.26418715]
[1729244274072,0.249016,67880.0,67879.0,0.26418715]
[1729244274302,0.249016,67880.0,67879.0,0.31013386]
[1729244274303,0.25351299,67880.0,67879.0,0.31013386]
[1729244274987,0.25351299,67880.0,67879.0,0.30013386]
[1729244275217,0.25351299,67880.0,67879.0,0.29013386]
[1729244275452,0.25351299,67880.0,67879.0,0.31813386]
[1729244275700,0.249016,67880.0,67879.0,0.31813386]
[1729244275924,0.25351299,67880.0,67879.0,0.31813386]
[1729244276379,0.25351299,67880.0,67879.0,0.22373386]
[1729244276612,0.25351299,67880.0,67879.0,0.33400862]
[1729244276852,0.249016,67880.0,67879.0,0.33400862]
[1729244277080,0.25351299,67880.0,67879.0,0.33400862]
[1729244278034,0.46290965,67880.0,67879.0,0.14094627]
[1729244278473,0.33074099,67868.0,67864.0,0.08822875]
[1729244278478,0.33074099,67868.0,67860.0,0.21942817]
[1729244278685,0.147353,67864.0,67860.0,0.21942817]
[1729244278892,0.26227402,67864.0,67859.0,0.058959]
[1729244279116,0.26227402,67864.0,67863.0,0.14978715]
[1729244280274,0.26227402,67864.0,67863.0,0.16378715]
[1729244281569,0.26327402,67864.0,67863.0,0.17678715]
[1729244281803,0.26327402,67864.0,67863.0,0.16278715]
[1729244282038,0.26327402,67864.0,67863.0,0.16378715]
[1729244282276,0.26227402,67864.0,67863.0,0.15878715]
[1729244282487,0.26427402,67864.0,67863.0,0.16578715]
[1729244282711,0.27595357,67864.0,67863.0,0.16578715]
[1729244282929,0.26427402,67864.0,67863.0,0.16578715]
[1729244283578,0.26327402,67864.0,67863.0,0.15678715]
[1729244283991,0.26427402,67864.0,67863.0,0.16378715]
[1729244285339,0.149353,67864.0,67863.0,0.16378715]
[1729244285565,0.26427402,67864.0,67863.0,0.16378715]
[1729244286682,0.149353,67864.0,67863.0,0.16378715]
[1729244286902,0.26427402,67864.0,67863.0,0.16378715]
[1729244287142,0.002,67864.0,67863.0,0.16378715]
[1729244287372,0.002,67864.0,67863.0,0.31114215]
[1729244287591,0.002,67864.0,67863.0,0.25548715]
[1729244288259,0.1,67866.0,67863.0,0.37544456]
[1729244288472,0.1,67866.0,67864.0,0.21502]
[1729244288683,0.147349,67866.0,67864.0,0.21502]
[1729244288908,0.147349,67866.0,67865.0,0.06606085]
[1729244289137,0.147349,67866.0,67865.0,0.21502]
[1729244289361,0.11492102,67869.0,67865.0,0.19483474]
[1729244289570,0.26226402,67869.0,67868.0,0.04404015]
[1729244289799,0.26226402,67869.0,67868.0,0.14895915]
[1729244290020,0.26226402,67869.0,67868.0,0.19299761]
[1729244290239,0.26226402,67869.0,67868.0,0.14895915]
[1729244290857,0.26226402,67869.0,67868.0,0.15695915]
[1729244291318,0.11492102,67869.0,67868.0,0.15695915]
[1729244291551,0.26226302,67869.0,67868.0,0.20099761]
[1729244291981,0.26226302,67869.0,67868.0,0.15695915]
[1729244292206,0.26226302,67869.0,67868.0,0.16495915]
[1729244293335,0.10449699,67873.0,67868.0,0.20900096]
[1729244293559,0.247339,67871.0,67869.0,0.19300103]
[1729244293808,0.247339,67871.0,67870.0,0.14895915]
[1729244293809,0.1,67871.0,67870.0,0.14895915]
[1729244294051,0.1,67878.0,67874.0,0.147331]
[1729244294277,0.21942817,67877.0,67876.0,0.14895915]
[1729244294489,0.36675317,67877.0,67876.0,0.16058468]
[1729244294718,0.147325,67877.0,67876.0,0.16058468]
[1729244295419,0.247325,67877.0,67876.0,0.16058468]
[1729244296326,0.247325,67877.0,67876.0,0.16758468]
[1729244296327,0.248325,67877.0,67876.0,0.16758468]
[1729244296538,0.248325,67877.0,67876.0,0.17358468]
[1729244297399,0.36324602,67877.0,67876.0,0.17358468]
[1729244297884,0.36324602,67877.0,67876.0,0.16195915]
[1729244298151,0.36324602,67877.0,67876.0,0.17358475]
[1729244298596,0.36324602,67877.0,67876.0,0.16195915]
[1729244300256,0.36324602,67877.0,67876.0,0.16278715]
[1729244303621,0.36324602,67877.0,67876.0,0.17441128]
[1729244303829,0.36224602,67877.0,67876.0,0.16741128]
[1729244304065,0.36224602,67877.0,67876.0,0.21146048]
[1729244304275,0.36324602,67877.0,67876.0,0.21846048]
[1729244304689,0.36324602,67877.0,67876.0,0.20683635]
[1729244305389,0.248325,67877.0,67876.0,0.2027191]
[1729244305594,0.247325,67877.0,67876.0,0.29644352]
[1729244305847,0.247325,67877.0,67876.0,0.29844345]
[1729244306053,0.247325,67877.0,67876.0,0.21034504]
[1729244306273,0.247325,67877.0,67876.0,0.29850975]
[1729244307405,0.247325,67877.0,67876.0,0.1644131]
[1729244308719,0.247325,67877.0,67876.0,0.2525778]
[1729244309820,0.247325,67877.0,67876.0,0.25257901]
[1729244311231,0.247325,67877.0,67876.0,0.16441431]
[1729244311465,0.247325,67877.0,67876.0,0.23057119]
[1729244311689,0.36224602,67877.0,67876.0,0.20852203]
[1729244311901,0.247325,67877.0,67876.0,0.20852203]
[1729244312146,0.247325,67877.0,67876.0,0.16441431]
[1729244312373,0.247325,67877.0,67876.0,0.20852203]
[1729244312585,0.247325,67877.0,67876.0,0.15278715]
[1729244313241,0.247325,67877.0,67876.0,0.19689445]
[1729244313733,0.247325,67877.0,67876.0,0.15278715]
[1729244315756,0.25878417,67877.0,67876.0,0.15278715]
[1729244316221,0.38464114,67877.0,67876.0,0.003828]
[1729244316448,0.47654114,67877.0,67876.0,0.003828]
[1729244316679,0.36162012,67877.0,67876.0,0.003828]
[1729244316938,0.26972012,67877.0,67876.0,0.003828]
[1729244318253,0.26972012,67877.0,67876.0,0.15278715]
[1729244318471,0.26972012,67877.0,67876.0,0.14978715]
[1729244320028,0.38464114,67877.0,67876.0,0.14978715]
[1729244325643,0.38464114,67877.0,67876.0,0.16143174]
[1729244327694,0.38464114,67877.0,67876.0,0.14978715]
[1729244332487,0.38464114,67877.0,67876.0,0.19390969]
[1729244335827,0.23731614,67877.0,67874.0,0.11030635]
[1729244336034,0.247329,67875.0,67874.0,0.19308169]
[1729244337649,0.25182599,67875.0,67874.0,0.19308169]
[1729244337856,0.25182599,67875.0,67874.0,0.19508169]
[1729244338500,0.25182599,67875.0,67874.0,0.19308169]
[1729244338706,0.25182599,67875.0,67874.0,0.19508169]
[1729244338936,0.25182599,67875.0,67874.0,0.19608169]
[1729244339561,0.25182599,67875.0,67874.0,0.15195915]
[1729244339782,0.36674701,67875.0,67874.0,0.15195915]
[1729244340010,0.36674701,67875.0,67874.0,0.32785915]
[1729244340438,0.36674701,67875.0,67874.0,0.3941024]
[1729244341112,0.36674701,67875.0,67874.0,0.3127024]
[1729244341609,0.36674701,67875.0,67874.0,0.24645915]
[1729244342505,0.36674701,67875.0,67874.0,0.3127024]
[1729244343442,0.36674701,67875.0,67874.0,0.3127058]
[1729244345846,0.36674701,67875.0,67874.0,0.33478801]
[1729244346056,0.36674701,67875.0,67874.0,0.38082593]
[1729244348059,0.36674701,67875.0,67874.0,0.38165393]
[1729244348499,0.46256601,67875.0,67874.0,0.38165393]
[1729244350758,0.343148,67875.0,67874.0,0.29332507]
[1729244351182,0.343148,67875.0,67874.0,0.37162507]
[1729244351853,0.343148,67875.0,67874.0,0.37062507]
[1729244352077,0.343148,67875.0,67874.0,0.38526586]
[1729244353122,0.343148,67875.0,67874.0,0.38326586]
[1729244353553,0.343148,67875.0,67874.0,0.38726586]
[1729244355557,0.095819,67875.0,67874.0,0.38726586]
[1729244355806,0.243148,67875.0,67874.0,0.38726586]
[1729244356246,0.243148,67875.0,67874.0,0.38326586]
[1729244356455,0.095819,67875.0,67874.0,0.38026586]
[1729244356669,0.243148,67875.0,67874.0,0.39526586]
[1729244357134,0.243148,67875.0,67874.0,0.38026586]
[1729244357361,0.243148,67875.0,67874.0,0.39326586]
[1729244357597,0.243148,67875.0,67874.0,0.40626586]
[1729244358721,0.243148,67875.0,67874.0,0.39326586]
[1729244361223,0.243148,67875.0,67874.0,0.32796586]
[1729244361679,0.243148,67875.0,67874.0,0.32794925]
[1729244362851,0.243148,67875.0,67874.0,0.31494925]
[1729244363084,0.243148,67875.0,67874.0,0.31594925]
[1729244363361,0.243148,67875.0,67874.0,0.46437451]
[1729244363605,0.243148,67875.0,67874.0,0.54027451]
[1729244364298,0.095819,67875.0,67874.0,0.54027451]
[1729244365686,0.095819,67875.0,67874.0,0.74654551]
[1729244365950,0.095819,67875.0,67874.0,0.59921451]
[1729244366435,0.095819,67875.0,67874.0,0.614119]
[1729244368753,0.095819,67875.0,67874.0,0.61411786]
[1729244371020,0.095819,67875.0,67874.0,0.61411764]
[1729244379090,0.001656,67876.0,67875.0,0.147329]
[1729244379319,0.001656,67876.0,67875.0,0.35394764]
[1729244379775,0.001656,67876.0,67875.0,0.35594764]
[1729244380481,0.001656,67876.0,67875.0,0.38194764]
[1729244381669,0.001656,67876.0,67875.0,0.36894764]
[1729244382119,0.001656,67876.0,67875.0,0.36994764]
[1729244382342,0.001656,67876.0,67875.0,0.38394764]
[1729244383962,0.001656,67876.0,67875.0,0.38194764]
[1729244384426,0.001656,67876.0,67875.0,0.23461864]
[1729244384652,0.148983,67876.0,67875.0,0.23461864]
[1729244385334,0.001656,67876.0,67875.0,0.23461864]
[1729244385564,0.001656,67876.0,67875.0,0.22299707]
[1729244388321,0.148983,67876.0,67875.0,0.22299707]
[1729244388543,0.148983,67876.0,67875.0,0.33331276]
[1729244389034,0.148983,67876.0,67875.0,0.22299707]
[1729244390200,0.240183,67876.0,67875.0,0.22299707]
[1729244392080,0.148983,67876.0,67875.0,0.22299707]
[1729244394287,0.148983,67876.0,67875.0,0.35533374]
[1729244396088,0.148983,67876.0,67875.0,0.35547924]
[1729244396302,0.148983,67876.0,67875.0,0.22299707]
[1729244396525,0.001656,67876.0,67875.0,0.22299707]
[1729244397637,0.001656,67876.0,67875.0,0.22382507]
[1729244401516,0.148983,67876.0,67875.0,0.22382507]
[1729244402230,0.001656,67876.0,67875.0,0.22382507]
[1729244403562,0.148983,67876.0,67875.0,0.22382507]
[1729244403779,0.001656,67876.0,67875.0,0.22382507]
[1729244404003,0.001656,67876.0,67875.0,0.37115407]
[1729244404465,0.001656,67876.0,67875.0,0.22382507]
[1729244409815,0.001656,67876.0,67875.0,0.37410043]
[1729244410024,0.001656,67876.0,67875.0,0.37115407]
[1729244411826,0.001656,67876.0,67875.0,0.38278722]
[1729244412527,0.001656,67876.0,67875.0,0.47358722]
[1729244413456,0.001656,67876.0,67875.0,0.55338722]
[1729244415618,0.001656,67876.0,67875.0,0.23545822]
[1729244415850,0.26390402,67876.0,67875.0,0.22382507]
[1729244416292,0.26390402,67876.0,67875.0,0.22146019]
[1729244416515,0.26390402,67876.0,67875.0,0.23546019]
[1729244416752,0.26390402,67876.0,67875.0,0.22382507]
[1729244416957,0.26390402,67876.0,67875.0,0.20982507]
[1729244417166,0.26390402,67876.0,67875.0,0.20882507]
[1729244417608,0.26390402,67876.0,67875.0,0.22282507]
[1729244418023,0.148983,67876.0,67875.0,0.20882507]
[1729244418230,0.148983,67876.0,67875.0,0.22182507]
[1729244423132,0.246383,67876.0,67875.0,0.22182507]
[1729244424256,0.36130402,67876.0,67875.0,0.22182507]
[1729244424485,0.66292203,67876.0,67875.0,0.22182507]
[1729244424689,0.54800101,67876.0,67875.0,0.22182507]
[1729244425140,0.54800101,67876.0,67875.0,0.28812172]
[1729244425366,0.54800101,67876.0,67875.0,0.16278715]
[1729244425589,0.54800101,67876.0,67875.0,0.14978715]
[1729244425801,0.66936099,67876.0,67875.0,0.000828]
[1729244426019,0.66936099,67876.0,67875.0,0.05301058]
[1729244426494,0.66936099,67876.0,67875.0,0.008828]
[1729244426926,0.66936099,67876.0,67875.0,0.017828]
[1729244427344,0.66936099,67876.0,67875.0,0.008828]
[1729244427805,0.66936099,67876.0,67875.0,0.016828]
[1729244428457,0.55443997,67876.0,67875.0,0.016828]
[1729244429143,0.55443997,67876.0,67875.0,0.02844591]
[1729244429360,0.55443997,67876.0,67875.0,0.016828]
[1729244429819,0.55443997,67876.0,67875.0,0.02844548]
[1729244431947,0.55443997,67876.0,67875.0,0.016828]
[1729244434474,0.54943997,67876.0,67875.0,0.16578715]
[1729244434688,0.54800101,67876.0,67875.0,0.16578715]
[1729244437225,0.54800101,67876.0,67875.0,0.17740035]
[1729244437687,0.25347999,67876.0,67875.0,0.17740035]
[1729244437902,0.36840101,67876.0,67875.0,0.24357599]
[1729244438121,0.36840101,67876.0,67875.0,0.17740035]
[1729244438343,0.36840101,67876.0,67875.0,0.22151486]
[1729244438554,0.36840101,67876.0,67875.0,0.22151374]
[1729244439036,0.36840101,67876.0,67875.0,0.22151375]
[1729244440785,0.36840101,67876.0,67875.0,0.17739924]
[1729244440993,0.36840101,67876.0,67875.0,0.22151375]
[1729244442304,0.25347999,67876.0,67875.0,0.22151375]
[1729244442560,0.248983,67876.0,67875.0,0.17739932]
[1729244442850,0.248983,67876.0,67875.0,0.22334185]
[1729244443081,0.25347999,67876.0,67875.0,0.17739932]
[1729244443505,0.25347999,67876.0,67875.0,0.24356882]
[1729244443753,0.25347999,67876.0,67875.0,0.17739932]
[1729244445786,0.248983,67876.0,67875.0,0.17739932]
[1729244446206,0.25347999,67876.0,67875.0,0.17739932]
[1729244446908,0.248983,67876.0,67875.0,0.17739932]
[1729244447119,0.25347999,67876.0,67875.0,0.17739932]
[1729244450087,0.248983,67876.0,67875.0,0.22335254]
[1729244450304,0.25347999,67876.0,67875.0,0.16578715]
[1729244450520,0.25347999,67876.0,67875.0,0.22336872]
[1729244451676,0.25347999,67876.0,67875.0,0.17740955]
[1729244451875,0.25347999,67876.0,67875.0,0.17741131]
[1729244452086,0.10449699,67876.0,67875.0,0.17741131]
[1729244452287,0.25182399,67876.0,67875.0,0.17741131]
[1729244452930,0.25186399,67876.0,67875.0,0.17741131]
[1729244453133,0.247367,67876.0,67875.0,0.17741131]
[1729244454372,0.25186399,67876.0,67875.0,0.17741639]
[1729244454590,0.44508501,67876.0,67875.0,0.17741639]
[1729244454798,0.53808501,67876.0,67875.0,0.17741639]
[1729244455010,0.42316399,67876.0,67875.0,0.17741639]
[1729244455220,0.54308501,67876.0,67875.0,0.02845724]
[1729244455486,0.54452397,67876.0,67875.0,0.02845724]
[1729244456331,0.54617997,67876.0,67875.0,0.02845724]
[1729244457401,0.43125895,67876.0,67875.0,0.02845724]
[1729244457611,0.54617997,67876.0,67875.0,0.02845724]
[1729244458919,0.43125895,67876.0,67875.0,0.02845724]
[1729244459470,0.54617997,67876.0,67875.0,0.02845724]
[1729244461195,0.55773861,67876.0,67875.0,0.016828]
[1729244461399,0.55773861,67876.0,67875.0,0.02845923]
[1729244462693,0.44281759,67876.0,67875.0,0.02845923]
[1729244463151,0.43125895,67876.0,67875.0,0.02845923]
[1729244464551,0.43125895,67876.0,67875.0,0.07259168]
[1729244464769,0.43125895,67876.0,67875.0,0.02845923]
[1729244464987,0.43125895,67876.0,67875.0,0.07259168]
[1729244465199,0.43125895,67876.0,67875.0,0.02845923]
[1729244465408,0.43125895,67876.0,67875.0,0.07259168]
[1729244466311,0.43125895,67876.0,67875.0,0.22343877]
[1729244466312,0.25351999,67876.0,67875.0,0.22343877]
[1729244466542,0.25351999,67876.0,67875.0,0.31173661]
[1729244468815,0.249023,67876.0,67875.0,0.22343877]
[1729244469049,0.25351999,67876.0,67875.0,0.22343821]
[1729244469269,0.249023,67876.0,67875.0,0.22343821]
[1729244469490,0.249023,67876.0,67875.0,0.33384101]
[1729244469946,0.25351999,67876.0,67875.0,0.33384101]
[1729244470403,0.25351999,67876.0,67875.0,0.22343821]
[1729244473258,0.25351999,67876.0,67875.0,0.22343831]
[1729244473748,0.25351999,67876.0,67875.0,0.22343842]
[1729244474186,0.25351999,67876.0,67875.0,0.33388327]
[1729244474625,0.249023,67876.0,67875.0,0.33388327]
[1729244474891,0.25351999,67876.0,67875.0,0.33388626]
[1729244475325,0.25351999,67876.0,67875.0,0.33388849]
[1729244476914,0.25351999,67876.0,67875.0,0.33388892]
[1729244480188,0.25351999,67876.0,67875.0,0.33340292]
[1729244480853,0.25351999,67876.0,67875.0,0.33340352]
[1729244481072,0.25351999,67876.0,67875.0,0.22295345]
[1729244481299,0.25351999,67876.0,67875.0,0.33342897]
[1729244483446,0.25351999,67876.0,67875.0,0.22295345]
[1729244484549,0.249023,67876.0,67875.0,0.22295345]
[1729244484774,0.25351999,67876.0,67875.0,0.22295467]
[1729244485011,0.25351999,67876.0,67875.0,0.33343517]
[1729244485464,0.54974101,67876.0,67875.0,0.22295467]
[1729244485681,0.55117997,67876.0,67875.0,0.02797513]
[1729244485901,0.55117997,67876.0,67875.0,0.09426617]
[1729244486120,0.43625895,67876.0,67875.0,0.09426617]
[1729244486357,0.55117997,67876.0,67875.0,0.08626617]
[1729244486978,0.55117997,67876.0,67875.0,0.07826617]
[1729244487403,0.55117997,67876.0,67875.0,0.08726617]
[1729244487617,0.55117997,67876.0,67875.0,0.09026617]
[1729244487845,0.43625895,67876.0,67875.0,0.08126617]
[1729244488276,0.43625895,67876.0,67875.0,0.08526218]
[1729244491207,0.34305895,67876.0,67875.0,0.08526218]
[1729244493684,0.33805895,67876.0,67875.0,0.08526218]
[1729244493906,0.33661999,67876.0,67875.0,0.08526218]
[1729244494813,0.18929299,67876.0,67875.0,0.06316358]
[1729244495301,0.33661999,67876.0,67875.0,0.06316358]
[1729244495516,0.33661999,67876.0,67875.0,0.2004896]
[1729244495517,0.25351999,67876.0,67875.0,0.2004896]
[1729244496712,0.25351999,67876.0,67875.0,0.15630115]
[1729244496928,0.25351999,67876.0,67875.0,0.20048957]
[1729244497609,0.25351999,67876.0,67875.0,0.21212122]
[1729244498828,0.25351999,67876.0,67875.0,0.20048957]
[1729244499708,0.25351999,67876.0,67875.0,0.15630115]
[1729244500180,0.25351999,67876.0,67875.0,0.20049129]
[1729244500414,0.25351999,67876.0,67875.0,0.15630115]
[1729244500646,0.25351999,67876.0,67875.0,0.2004917]
[1729244500875,0.25351999,67876.0,67875.0,0.15630115]
[1729244502464,0.25351999,67876.0,67875.0,0.20049188]
[1729244502730,0.25351999,67876.0,67875.0,0.10049188]
[1729244503346,0.25351999,67876.0,67875.0,0.10131988]
[1729244504889,0.25351999,67876.0,67875.0,0.1129516]
[1729244508375,0.25351999,67876.0,67875.0,0.11295222]
[1729244512794,0.25351999,67876.0,67875.0,0.13504789]
[1729244513232,0.25351999,67876.0,67875.0,0.06876087]
[1729244513634,0.25351999,67876.0,67875.0,0.11480187]
[1729244514542,0.25351999,67876.0,67875.0,0.11480779]
[1729244515854,0.25351999,67876.0,67875.0,0.11980779]
[1729244516078,0.25351999,67876.0,67875.0,0.11480779]
[1729244516493,0.25351999,67876.0,67875.0,0.11980779]
[1729244516705,0.25351999,67876.0,67875.0,0.12480779]
[1729244517187,0.25351999,67876.0,67875.0,0.11980779]
[1729244517414,0.36844101,67876.0,67875.0,0.11980779]
[1729244517644,0.44864101,67876.0,67875.0,0.12480779]
[1729244518109,0.33371999,67876.0,67875.0,0.12480779]
[1729244518592,0.44864101,67876.0,67875.0,0.12480779]
[1729244518815,0.45364101,67876.0,67875.0,0.06850664]
[1729244519044,0.34015895,67876.0,67875.0,0.06850664]
[1729244521228,0.34015895,67876.0,67875.0,0.06850832]
[1729244525584,0.34015895,67876.0,67875.0,0.1569019]
[1729244528615,0.34015895,67876.0,67875.0,0.15690237]
[1729244529085,0.34015895,67876.0,67875.0,0.15692977]
[1729244529940,0.25351999,67876.0,67875.0,0.30588892]
[1729244531485,0.25351999,67876.0,67875.0,0.21746794]
[1729244531710,0.25351999,67876.0,67875.0,0.20582815]
[1729244531928,0.25351999,67876.0,67875.0,0.21746823]
[1729244536366,0.25351999,67876.0,67875.0,0.21746918]
[1729244536827,0.001696,67876.0,67875.0,0.39216919]
[1729244537067,0.001696,67876.0,67875.0,0.53949819]
[1729244537637,0.001696,67876.0,67875.0,0.54170838]
[1729244538214,0.001696,67876.0,67875.0,0.53670838]
[1729244538413,0.001696,67876.0,67875.0,0.55070838]
[1729244538663,0.001696,67876.0,67875.0,1.24570838]
[1729244538871,0.001696,67876.0,67875.0,1.24670838]
[1729244539321,0.001696,67876.0,67875.0,1.25970838]
[1729244540038,0.001696,67876.0,67875.0,1.24670838]
[1729244540258,0.001696,67876.0,67875.0,1.24470838]
[1729244540489,0.001696,67876.0,67875.0,1.25770838]
[1729244541626,0.001696,67876.0,67875.0,1.11037938]
[1729244542044,0.001696,67876.0,67875.0,1.25770838]
[1729244542252,0.001696,67876.0,67875.0,1.25970838]
[1729244542482,0.001696,67876.0,67875.0,1.3746294]
[1729244542689,0.001696,67876.0,67875.0,1.40313241]
[1729244543582,0.001696,67876.0,67875.0,1.39013241]
[1729244544249,0.001696,67876.0,67875.0,1.37709741]
[1729244544461,0.001696,67876.0,67875.0,1.39109741]
[1729244544892,0.001696,67876.0,67875.0,1.40509741]
[1729244546462,0.001696,67876.0,67875.0,1.6002754]
[1729244547510,0.001696,67876.0,67875.0,1.40509741]
[1729244548150,0.001696,67876.0,67875.0,1.39349137]
[1729244548366,0.001696,67876.0,67875.0,1.40508513]
[1729244548796,0.001696,67876.0,67875.0,1.28816411]
[1729244549655,0.001696,67876.0,67875.0,1.29016411]
[1729244550093,0.001696,67876.0,67875.0,1.26516411]
[1729244550754,0.001696,67876.0,67875.0,1.25316411]
[1729244550968,0.001696,67876.0,67875.0,1.23916411]
[1729244551185,0.001696,67876.0,67875.0,1.25316411]
[1729244552139,0.001696,67876.0,67875.0,1.26715516]
[1729244552361,0.001696,67876.0,67875.0,1.26515516]
[1729244552589,0.001696,67876.0,67875.0,1.39723944]
[1729244552806,0.001696,67876.0,67875.0,1.26515516]
[1729244553239,0.001696,67876.0,67875.0,1.26715516]
[1729244553666,0.001696,67876.0,67875.0,1.26515516]
[1729244554497,0.001696,67876.0,67875.0,1.27104816]
[1729244555578,0.001696,67876.0,67875.0,1.40310613]
[1729244556234,0.001696,67876.0,67875.0,1.40310669]
[1729244558775,0.001696,67876.0,67875.0,1.40510669]
[1729244559467,0.001696,67876.0,67875.0,1.40310669]
[1729244560628,0.001696,67876.0,67875.0,1.40311316]
[1729244563922,0.001696,67876.0,67875.0,1.08108416]